fUSD/lending_fUSD_20260407
["ID","MTS","AMOUNT","RATE_DAILY","PERIOD"]
[420003728,1775603444676,-500.0,0.00015794,2]
[420003729,1775603444685,-500.0,0.00015794,2]
[420003730,1775603444695,-500.0,0.00015794,2]
[420003731,1775603444705,-444.10227341,0.00015794,2]
[420003732,1775603444714,-541.99,0.00015794,2]
[420003733,1775603444723,-541.99,0.00015794,2]
[420003734,1775603444733,-541.99,0.00015794,2]
[420003735,1775603444743,-541.99,0.00015794,2]
[420003736,1775603444752,-541.99,0.00015794,2]
[420003737,1775603444761,-541.99,0.00015794,2]
[420003738,1775603444771,-481.06713155,0.00015794,2]
[420003739,1775603444780,-500.0,0.00015794,2]
[420003740,1775603444789,-500.0,0.00015794,2]
[420003741,1775603444799,-500.0,0.00015794,2]
[420003742,1775603444808,-500.0,0.00015794,2]
[420003743,1775603444818,-590.87749092,0.00015794,2]
[420003744,1775603444827,-500.0,0.00015794,2]
[420003745,1775603444837,-500.0,0.00015794,2]
[420003746,1775603444846,-1500000.0,0.00015795,2]
[420003747,1775603444858,-150.0,0.000158,2]
[420003748,1775603444868,-1100.0,0.000158,5]
[420003749,1775603444878,-200.0,0.000158,5]
[420003750,1775603444888,-1000.0,0.00015803,2]
[420003751,1775603444898,-1000.0,0.00015804,2]
[420003752,1775603444908,-1000.0,0.00015805,2]
[420003753,1775603444917,-922.15,0.00015807,2]
[420003754,1775603444926,-574.65107504,0.00015807,2]
[420003755,1775603444937,-500.0,0.00015807,2]
[420003756,1775603444947,-1510.24,0.00015807,2]
[420003757,1775603444956,-500.0,0.00015807,2]
[420003758,1775603444966,-1086.701433,0.00015817,2]
[420003759,1775603444975,-164.318945,0.00015817,7]
[420003760,1775603444984,-892.267039,0.00015817,7]
[420003761,1775603444993,-416.54697,0.00015817,2]
[420003762,1775603445003,-185.422007,0.00015817,7]
[420003763,1775603445012,-483.439029,0.00015817,2]
[420003764,1775603445022,-150.0,0.00015822,2]
[420003765,1775603445031,-1000.0,0.00015824,2]
[420003766,1775603445041,-5848.41001934,0.00015826,2]
[420003767,1775603445050,-2648.07972762,0.00015831,2]
[420003768,1775603445060,-1572.0,0.00015833,2]
[420003769,1775603445069,-1573.0,0.00015833,2]
[420003770,1775603445079,-1363.6777,0.0001584,2]
[420003771,1775603445089,-1363.6777,0.0001584,2]
[420003772,1775603445098,-1000.0,0.0001584,2]
[420003773,1775603445109,-63901.91494605,0.0001584,2]
[420003774,1775603445119,-1000.0,0.00015843,2]
[420003775,1775603445129,-1000.0,0.00015847,2]
[420003776,1775603445139,-1363.6777,0.0001585,2]
[420003777,1775603445149,-150.0,0.00015855,2]
[420003778,1775603445160,-1144.0,0.00015867,5]
[420003779,1775603445170,-500.0,0.00015872,2]
[420003780,1775603445180,-200.0,0.00015872,2]
[420003781,1775603445190,-156.3,0.0001588,2]
[420003782,1775603445200,-150.0,0.00015886,2]
[420003783,1775603445209,-300.0,0.00015887,2]
[420003784,1775603445218,-1000.0,0.00015891,2]
[420003785,1775603445228,-500.0,0.00015894,2]
[420003786,1775603445238,-657.46,0.00015894,2]
[420003787,1775603445248,-531.81791081,0.00015894,2]
[420003788,1775603445258,-4000.0,0.00015895,2]
[420003789,1775603445268,-1000.0,0.00015896,2]
[420003790,1775603445278,-151.0,0.00015897,2]
[420003791,1775603445288,-541.66,0.00015899,2]
[420003792,1775603445298,-1184.11,0.00015899,2]
[420003793,1775603445307,-452.0,0.00015899,2]
[420003796,1775603445652,-1000.0,0.000159,2]
[420003797,1775603445666,-150.0,0.000159,2]
[420003798,1775603445677,-5848.41001934,0.000159,2]
[420003799,1775603445686,-1100.0,0.000159,5]
[420003800,1775603445697,-7472.76846958,0.000159,2]
[420003801,1775603445706,-200.0,0.000159,5]
[420003802,1775603445716,-2648.07972762,0.000159,2]
[420003803,1775603445726,-210.99779365,0.000159,2]
[420003804,1775603445736,-714.81323312,0.000159,2]
[420003805,1775603445745,-477.05770822,0.000159,2]
[420003806,1775603445755,-611.4752105,0.00015909,2]
[420003807,1775603445766,-209.67,0.00015915,2]
[420003808,1775603445775,-1000.0,0.00015917,2]
[420003809,1775603445785,-1000.0,0.00015919,2]
[420003810,1775603445794,-150.0,0.00015927,2]
[420003811,1775603445804,-1000.0,0.00015935,2]
[420003812,1775603445815,-4520.429435,0.00015935,2]
[420003813,1775603445825,-120311.510444,0.00015935,2]
[420003814,1775603445835,-1000.0,0.00015938,2]
[420003815,1775603445844,-807.34943637,0.00015963,2]
[420003816,1775603445854,-150.0,0.00015964,2]
[420003817,1775603445864,-172.20917,0.00015964,2]
[420003818,1775603445874,-2467.2745553,0.00015967,2]
[420003819,1775603445883,-9100.072177,0.00015967,2]
[420003820,1775603445894,-5554.6011041,0.00015967,2]
[420003821,1775603445904,-120771.1476853,0.00015967,2]
[420003822,1775603445914,-151.541942,0.00015967,2]
[420003823,1775603445924,-151.0,0.00015967,2]
[420003824,1775603445934,-1000.0,0.00015971,2]
[420003825,1775603445943,-3269.0,0.00015973,2]
[420003826,1775603445952,-500.0,0.00015973,2]
[420003827,1775603445962,-500.0,0.00015973,2]
[420003828,1775603445971,-500.0,0.00015973,2]
[420003829,1775603445981,-500.0,0.00015973,2]
[420003830,1775603445990,-500.0,0.00015973,2]
[420003831,1775603446000,-500.0,0.00015973,2]
[420003832,1775603446010,-500.0,0.00015973,2]
[420003833,1775603446019,-453.31303788,0.00015973,2]
[420003834,1775603446029,-500.0,0.00015973,2]
[420003835,1775603446039,-500.0,0.00015973,2]
[420003836,1775603446049,-500.0,0.00015973,2]
[420003837,1775603446058,-500.0,0.00015973,2]
[420003838,1775603446067,-500.0,0.00015973,2]
[420003839,1775603446078,-500.0,0.00015973,2]
[420003840,1775603446087,-500.0,0.00015973,2]
[420003841,1775603446097,-500.0,0.00015973,2]
[420003842,1775603446107,-500.0,0.00015973,2]
[420003843,1775603446117,-500.0,0.00015973,2]
[420003844,1775603446127,-500.0,0.00015973,2]
[420003845,1775603446137,-500.0,0.00015973,2]
[420003846,1775603446147,-500.0,0.00015973,2]
[420003847,1775603446158,-500.0,0.00015973,2]
[420003848,1775603446168,-500.0,0.00015973,2]
[420003849,1775603446178,-500.0,0.00015973,2]
[420003850,1775603446188,-500.0,0.00015973,2]
[420003851,1775603446198,-500.0,0.00015973,2]
[420003852,1775603446208,-500.0,0.00015973,2]
[420003853,1775603446218,-500.0,0.00015973,2]
[420003854,1775603446228,-500.0,0.00015973,2]
[420003855,1775603446237,-500.0,0.00015973,2]
[420003856,1775603446247,-500.0,0.00015973,2]
[420003857,1775603446256,-500.0,0.00015973,2]
[420003858,1775603446266,-452.0,0.00015973,2]
[420003859,1775603446275,-1000.0,0.00015975,2]
[420003860,1775603446285,-300.0,0.00015976,2]
[420003861,1775603446295,-1000.0,0.00015987,2]
[420003862,1775603446305,-600.0,0.00015989,2]
[420003863,1775603446316,-378.26322302,0.0001599,2]
[420003864,1775603446326,-378.26322302,0.0001599,2]
[420003865,1775603446336,-150.0,0.00015995,2]
[420003866,1775603446345,-151.0,0.00015997,2]
[420003867,1775603446356,-922.15,0.00015998,2]
[420003868,1775603446366,-342.04805757,0.00015998,2]
[420003869,1775603446376,-1510.24,0.00015998,2]
[420003870,1775603446387,-500.0,0.00015998,2]
[420003871,1775603446397,-666.0,0.00015999,2]
[420003872,1775603446408,-666.0,0.00015999,2]
[420003873,1775603446418,-500.0,0.00015999,2]
[420003874,1775603446428,-500.0,0.00015999,2]
[420003875,1775603446438,-500.0,0.00015999,2]
[420003876,1775603446448,-500.0,0.00015999,2]
[420003877,1775603446459,-500.0,0.00015999,2]
[420003878,1775603446468,-500.0,0.00015999,2]
[420003879,1775603446478,-500.0,0.00015999,2]
[420003880,1775603446488,-500.0,0.00015999,2]
[420003881,1775603446498,-500.0,0.00015999,2]
[420003882,1775603446508,-922.15,0.00015999,2]
[420003883,1775603446518,-922.15,0.00015999,2]
[420003884,1775603446527,-922.15,0.00015999,2]
[420003885,1775603446537,-922.15,0.00015999,2]
[420003886,1775603446547,-922.15,0.00015999,2]
[420003887,1775603446556,-922.15,0.00015999,2]
[420003888,1775603446565,-922.15,0.00015999,2]
[420003889,1775603446575,-922.15,0.00015999,2]
[420003890,1775603446584,-922.15,0.00015999,2]
[420003891,1775603446594,-922.15,0.00015999,2]
[420003892,1775603446604,-922.15,0.00015999,2]
[420003893,1775603446614,-922.15,0.00015999,2]
[420003894,1775603446624,-922.15,0.00015999,2]
[420003895,1775603446634,-922.15,0.00015999,2]
[420003896,1775603446644,-922.15,0.00015999,2]
[420003897,1775603446653,-922.24958324,0.00015999,2]
[420003898,1775603446664,-541.66,0.00015999,2]
[420003899,1775603446674,-541.66,0.00015999,2]
[420003900,1775603446685,-541.66,0.00015999,2]
[420003901,1775603446695,-541.66,0.00015999,2]
[420003902,1775603446704,-541.66,0.00015999,2]
[420003903,1775603446714,-541.66,0.00015999,2]
[420003904,1775603446724,-541.66,0.00015999,2]
[420003905,1775603446734,-541.66,0.00015999,2]
[420003906,1775603446743,-541.66,0.00015999,2]
[420003907,1775603446753,-541.66,0.00015999,2]
[420003908,1775603446762,-541.66,0.00015999,2]
[420003909,1775603446772,-541.66,0.00015999,2]
[420003910,1775603446782,-541.66,0.00015999,2]
[420003911,1775603446792,-541.66,0.00015999,2]
[420003912,1775603446801,-541.66,0.00015999,2]
[420003913,1775603446811,-541.82,0.00015999,2]
[420003914,1775603446821,-500.0,0.00015999,2]
[420003915,1775603446831,-500.0,0.00015999,2]
[420003916,1775603446841,-500.0,0.00015999,2]
[420003917,1775603446851,-500.0,0.00015999,2]
[420003918,1775603446861,-500.0,0.00015999,2]
[420003919,1775603446871,-500.0,0.00015999,2]
[420003920,1775603446881,-500.0,0.00015999,2]
[420003921,1775603446891,-500.0,0.00015999,2]
[420003922,1775603446901,-500.0,0.00015999,2]
[420003923,1775603446910,-500.0,0.00015999,2]
[420003924,1775603446920,-500.0,0.00015999,2]
[420003925,1775603446932,-500.0,0.00015999,2]
[420003926,1775603446942,-500.0,0.00015999,2]
[420003927,1775603446951,-437.55127796,0.00015999,2]
[420003928,1775603446961,-657.46,0.00015999,2]
[420003929,1775603446971,-657.46,0.00015999,2]
[420003930,1775603446980,-657.46,0.00015999,2]
[420003931,1775603446990,-657.46,0.00015999,2]
[420003932,1775603447000,-657.46,0.00015999,2]
[420003933,1775603447009,-657.46,0.00015999,2]
[420003934,1775603447019,-657.46,0.00015999,2]
[420003935,1775603447029,-657.46,0.00015999,2]
[420003936,1775603447038,-1184.11,0.00015999,2]
[420003937,1775603447047,-657.46,0.00015999,2]
[420003938,1775603447056,-1184.11,0.00015999,2]
[420003939,1775603447065,-657.46,0.00015999,2]
[420003940,1775603447075,-1184.11,0.00015999,2]
[420003941,1775603447085,-657.46,0.00015999,2]
[420003942,1775603447095,-1184.11,0.00015999,2]
[420003943,1775603447104,-657.46,0.00015999,2]
[420003944,1775603447113,-657.46,0.00015999,2]
[420003945,1775603447122,-1184.11,0.00015999,2]
[420003946,1775603447131,-657.46,0.00015999,2]
[420003947,1775603447139,-1184.11,0.00015999,2]
[420003948,1775603447147,-1184.11,0.00015999,2]
[420003949,1775603447156,-657.46,0.00015999,2]
[420003950,1775603447166,-1184.11,0.00015999,2]
[420003951,1775603447176,-657.68,0.00015999,2]
[420003952,1775603447185,-1184.11,0.00015999,2]
[420003953,1775603447195,-1184.11,0.00015999,2]
[420003954,1775603447205,-1184.11,0.00015999,2]
[420003955,1775603447215,-1184.11,0.00015999,2]
[420003956,1775603447225,-1184.11,0.00015999,2]
[420003957,1775603447235,-1184.11,0.00015999,2]
[420003958,1775603447245,-1184.11,0.00015999,2]
[420003959,1775603447256,-1184.3,0.00015999,2]
[420003960,1775603447266,-1510.24,0.00015999,2]
[420003961,1775603447276,-1510.24,0.00015999,2]
[420003962,1775603447286,-1510.24,0.00015999,2]
[420003963,1775603447296,-1510.24,0.00015999,2]
[420003964,1775603447306,-1510.24,0.00015999,2]
[420003965,1775603447316,-1510.24,0.00015999,2]
[420003966,1775603447326,-1510.24,0.00015999,2]
[420003967,1775603447336,-1510.24,0.00015999,2]
[420003968,1775603447344,-1510.24,0.00015999,2]
[420003969,1775603447354,-1510.24,0.00015999,2]
[420003970,1775603447363,-1510.24,0.00015999,2]
[420003971,1775603447374,-1510.24,0.00015999,2]
[420003972,1775603447385,-1510.24,0.00015999,2]
[420003973,1775603447394,-1510.24,0.00015999,2]
[420003974,1775603447403,-1510.24,0.00015999,2]
[420003975,1775603447414,-1510.40849701,0.00015999,2]
[420003976,1775603447423,-57636.64122745,0.00015999,2]
[420003977,1775603447432,-500.0,0.00015999,2]
[420003978,1775603447441,-500.0,0.00015999,2]
[420003979,1775603447450,-500.0,0.00015999,2]
[420003980,1775603447459,-150.0,0.00015999,2]
[420003981,1775603447469,-150.0,0.00015999,2]
[420003982,1775603447479,-176.66177212,0.00015999,2]
[420003983,1775603447489,-1654.0,0.00016,5]
[420003984,1775603447498,-245.0843554,0.00016,2]
[420003985,1775603447508,-150.0,0.00016,2]
[420003986,1775603447517,-183.96136344,0.00016,2]
[420003987,1775603447527,-152.61372688,0.00016,2]
[420003988,1775603447537,-232.26207746,0.00016,2]
[420003989,1775603447547,-151.229671,0.00016,2]
[420003990,1775603447556,-181.05044788,0.00016,2]
[420003991,1775603447566,-151.75828689,0.00016,2]
[420003992,1775603447576,-292.77980276,0.00016,2]
[420003993,1775603447587,-462354.4959616,0.00016,2]
[420003994,1775603448175,-410.32677016,0.00015821,2]
[420003995,1775603448192,-4.67322984,0.00015821,2]
[420003996,1775603448202,-500.0,0.00015999,2]
[420003997,1775603448212,-97.70463275,0.00015999,2]
[420003998,1775603448237,-402.29536725,0.00015999,2]
[420003999,1775603448247,-500.0,0.00015999,2]
[420004000,1775603448257,-500.0,0.00015999,2]
[420004001,1775603448267,-500.0,0.00015999,2]
[420004002,1775603448277,-500.0,0.00015999,2]
[420004003,1775603448286,-500.0,0.00015999,2]
[420004004,1775603448297,-500.0,0.00015999,2]
[420004005,1775603448307,-500.0,0.00015999,2]
[420004006,1775603448317,-79114.63485388,0.00016,2]
[420004007,1775603448333,-8501.88394847,0.00016,2]
[420004008,1775603448344,-18714.71014152,0.00016,2]
[420004009,1775603448357,-792.04952272,0.00016,2]
[420004010,1775603448368,-1158085.2292627,0.00016,2]
[420004011,1775603448627,-372.26189109,0.00015999,2]
[420004014,1775603450701,-500.0,0.00013912,2]
[420004015,1775603450712,-127.73810891,0.00015999,2]
[420004017,1775603450722,-500.0,0.00015999,2]
[420004018,1775603450732,-26971.4896245,0.00016,2]
[420004019,1775603450745,-376.83341605,0.00016,2]
[420004023,1775603450785,-500.0,0.00013912,2]
[420004025,1775603450796,-500.0,0.00013912,2]
[420004027,1775603450805,-264.87849551,0.00013912,2]
[420004038,1775603452944,-235.12150449,0.00013912,2]
[420004039,1775603452955,-500.0,0.00013912,2]
[420004040,1775603452966,-500.0,0.00013912,2]
[420004041,1775603452976,-500.0,0.00013912,2]
[420004042,1775603452986,-500.0,0.00013912,2]
[420004043,1775603452996,-500.0,0.00013912,2]
[420004044,1775603453006,-500.0,0.00013912,2]
[420004045,1775603453016,-500.0,0.00013912,2]
[420004046,1775603453026,-213.93969573,0.00013912,2]
[420004047,1775603453068,-286.06030427,0.00013912,2]
[420004048,1775603453078,-500.0,0.00013912,2]
[420004049,1775603453089,-500.0,0.00013912,2]
[420004050,1775603453099,-500.0,0.00013912,2]
[420004051,1775603453111,-500.0,0.00013912,2]
[420004052,1775603453121,-500.0,0.00013912,2]
[420004053,1775603453132,-500.0,0.00013912,2]
[420004054,1775603453142,-500.0,0.00013912,2]
[420004055,1775603453152,-275.97509846,0.00013912,2]
[420004056,1775603453165,-235.43555488,0.00013912,2]
[420004057,1775603453175,-500.0,0.00013912,2]
[420004058,1775603453186,-500.0,0.00013912,2]
[420004059,1775603453196,-247.182825,0.00015967,2]
[420004060,1775603453206,-4665.79265491,0.00016,2]
[420004061,1775603453219,-12086.60117328,0.00016,2]
[420004062,1775603453494,-1063.75683969,0.00016,2]
[420004063,1775603453521,-26029.36594351,0.00016,2]
[420004064,1775603453532,-42861.85364533,0.00016,2]
[420004068,1775603826188,-174.57,0.00011893,2]
[420004072,1775604135955,160.91,7.325e-05,2]
[420004073,1775604136161,160.91,7.935e-05,2]
[420004074,1775604136306,160.91,8.546e-05,2]
[420004075,1775604136409,160.91,9.156e-05,2]
[420004076,1775604136624,160.91,9.767e-05,2]
[420004077,1775604136962,160.91,0.00010377,2]
[420004078,1775604137100,160.91,0.00010987,2]
[420004079,1775604137340,160.91,0.00011598,2]
[420004226,1775604633427,-160.91,0.00012208,2]
[420004228,1775604633438,-200.0,0.000127,2]
[420004230,1775604633450,-160.91,0.00012819,2]
[420004232,1775604633460,-153.18,0.00013,2]
[420004235,1775604633472,-96.82,0.00013,2]
[420004236,1775604633481,-506.0,0.000131,2]
[420004238,1775604633490,-505.0,0.000131,2]
[420004240,1775604633500,-317.08,0.00013429,2]
[420004242,1775604633510,-160.91,0.00013429,2]
[420004244,1775604633520,-258.7609098,0.00013429,2]
[420004246,1775604633530,-1030.18,0.00013697,2]
[420004248,1775604633542,-166.66,0.00013699,2]
[420004251,1775604633552,-166.66,0.00013887,2]
[420004253,1775604633563,-1600.0,0.00013941,2]
[420004255,1775604633572,-300.0,0.00013941,7]
[420004257,1775604633582,-1200.0,0.0001397,2]
[420004259,1775604633592,-1611.13,0.00013971,2]
[420004261,1775604633601,-160.91,0.0001404,2]
[420004263,1775604633610,-166.66,0.00014075,2]
[420004265,1775604633620,-150.0,0.000141,2]
[420004267,1775604633630,-300.0,0.00014113,2]
[420004268,1775604633639,-626.83,0.00014114,2]
[420004269,1775604633649,-500.0,0.00014114,2]
[420004270,1775604633659,-166.66,0.00014262,2]
[420004271,1775604633669,-13769.381,0.00014291,2]
[420004272,1775604633678,-200.0,0.00014382,2]
[420004273,1775604633688,-150.0,0.0001439,2]
[420004274,1775604633698,-999.99,0.00014391,2]
[420004275,1775604633707,-150.99,0.00014391,2]
[420004276,1775604633717,-299.99,0.00014391,2]
[420004277,1775604633727,-6495.97,0.00014391,2]
[420004278,1775604633736,-9999.99,0.00014391,2]
[420004279,1775604633747,-286.51,0.00014391,2]
[420004280,1775604633756,-150.0,0.000144,2]
[420004281,1775604633766,-150.0,0.000144,2]
[420004282,1775604633777,-150.0,0.000144,2]
[420004283,1775604633787,-150.0,0.000144,2]
[420004284,1775604633797,-150.0,0.000144,2]
[420004285,1775604633807,-150.0,0.000144,2]
[420004286,1775604633816,-150.0,0.000144,2]
[420004287,1775604633826,-150.0,0.000144,2]
[420004288,1775604633836,-150.0,0.000144,2]
[420004289,1775604633845,-150.0,0.00014416,2]
[420004290,1775604633854,-1573.0,0.0001442,2]
[420004291,1775604633864,-166.66,0.0001445,2]
[420004292,1775604633875,-506.0,0.00014465,3]
[420004293,1775604633886,-150.0,0.0001456,2]
[420004294,1775604633897,-150.0,0.000146,2]
[420004295,1775604633908,-166.66,0.00014638,2]
[420004296,1775604633919,-160.91,0.0001465,2]
[420004297,1775604633929,-150.0,0.00014667,2]
[420004299,1775604633938,-7032.53,0.00014673,2]
[420004301,1775604633948,-150.0,0.0001472,2]
[420004303,1775604633959,-150.0,0.000148,2]
[420004305,1775604633971,-150.0,0.000148,2]
[420004307,1775604633980,-150.0,0.000148,2]
[420004309,1775604633990,-174.57,0.00014867,2]
[420004311,1775604633999,-150.0,0.0001488,2]
[420004312,1775604634008,-150.0,0.00014933,2]
[420004314,1775604634018,-150.0,0.00014933,2]
[420004316,1775604634028,-150.0,0.00014933,2]
[420004318,1775604634040,-1000.0,0.00014979,2]
[420004319,1775604634050,-47448.04884391,0.0001498,2]
[420004320,1775604634063,-4504.55230381,0.0001498,2]
[420004321,1775604634075,-26835.35508481,0.0001498,2]
[420004322,1775604634084,-4635.44382095,0.0001499,2]
[420004323,1775604634094,-150.0,0.00015,2]
[420004324,1775604634103,-300.0,0.00015,2]
[420004325,1775604634112,-736.0,0.0001502,2]
[420004326,1775604634122,-150.0,0.0001504,2]
[420004327,1775604634132,-736.0,0.00015041,2]
[420004328,1775604634142,-1235.18214925,0.00015109,2]
[420004329,1775604634151,-200.0,0.00015109,2]
[420004330,1775604634160,-500.0,0.00015109,2]
[420004331,1775604634170,-500.0,0.00015109,2]
[420004332,1775604634179,-500.0,0.00015109,2]
[420004333,1775604634189,-500.0,0.00015109,2]
[420004334,1775604634200,-500.0,0.00015109,2]
[420004335,1775604634210,-500.0,0.00015109,2]
[420004336,1775604634221,-500.0,0.00015109,2]
[420004337,1775604634231,-399.3239693,0.00015109,2]
[420004338,1775604634241,-174.61919141,0.00015109,2]
[420004339,1775604634251,-743.50770149,0.00015109,2]
[420004340,1775604634261,-194.83183622,0.00015109,2]
[420004341,1775604634271,-5347.79604352,0.00015117,2]
[420004342,1775604634281,-160.0,0.00015132,2]
[420004343,1775604634294,-9412.32168148,0.00015169,2]
[420004344,1775604634304,-150.0,0.000152,2]
[420004345,1775604634314,-150.0,0.000152,2]
[420004346,1775604634323,-150.0,0.000152,2]
[420004347,1775604634332,-150.0,0.000152,2]
[420004348,1775604634342,-150.0,0.000152,2]
[420004349,1775604634354,-150.0,0.000152,2]
[420004350,1775604634368,-165.5255,0.000152,2]
[420004351,1775604634378,-618.72233376,0.00015204,2]
[420004352,1775604634391,-4729.07370968,0.00015204,2]
[420004353,1775604634400,-10000.0,0.00015205,2]
[420004354,1775604634410,-736.0,0.00015217,2]
[420004355,1775604634420,-190.59003967,0.0001524,2]
[420004356,1775604634430,-736.0,0.00015254,2]
[420004357,1775604634440,-5347.79604344,0.00015291,2]
[420004358,1775604634449,-200.0,0.000153,5]
[420004359,1775604634458,-166.66,0.00015354,2]
[420004360,1775604634468,-150.0,0.0001536,2]
[420004361,1775604634478,-1680.0,0.00015366,2]
[420004362,1775604634488,-500.0,0.00015371,2]
[420004363,1775604634497,-500.0,0.00015371,2]
[420004364,1775604634508,-500.0,0.00015371,2]
[420004365,1775604634518,-500.0,0.00015371,2]
[420004366,1775604634528,-500.0,0.00015371,2]
[420004367,1775604634541,-500.0,0.00015371,2]
[420004368,1775604634551,-337.01816193,0.00015371,2]
[420004369,1775604634561,-500.0,0.00015371,2]
[420004370,1775604634570,-1489.89,0.00015371,2]
[420004371,1775604634579,-500.0,0.00015371,2]
[420004372,1775604634588,-500.0,0.00015371,2]
[420004373,1775604634598,-500.0,0.00015371,2]
[420004374,1775604634614,-5347.79604344,0.00015378,2]
[420004375,1775604634624,-985.75,0.00015395,2]
[420004376,1775604634634,-1008.8002,0.000154,2]
[420004377,1775604634643,-150.0,0.000154,2]
[420004378,1775604634653,-500.0,0.000154,5]
[420004379,1775604634662,-308.0,0.00015453,2]
[420004380,1775604634674,-5347.79604344,0.00015465,2]
[420004381,1775604634685,-150.0,0.00015467,2]
[420004382,1775604634696,-150.0,0.00015467,2]
[420004383,1775604634707,-150.0,0.00015467,2]
[420004384,1775604634717,-567.04,0.00015471,2]
[420004385,1775604634727,-330.43911721,0.00015476,2]
[420004386,1775604634736,-209.396782,0.00015478,2]
[420004387,1775604634746,-160.0,0.00015478,7]
[420004388,1775604634755,-162.8483,0.00015478,7]
[420004389,1775604634765,-165.696601,0.00015478,7]
[420004390,1775604634775,-162.44114,0.00015478,2]
[420004391,1775604634784,-202.034808,0.00015478,7]
[420004392,1775604634799,-160.0,0.00015478,2]
[420004393,1775604634809,-179.140899,0.00015478,2]
[420004394,1775604634819,-198.281799,0.00015478,2]
[420004395,1775604634829,-736.0,0.000155,2]
[420004396,1775604634839,-800.0,0.000155,5]
[420004397,1775604634849,-255.0,0.00015513,2]
[420004398,1775604634859,-150.0,0.0001552,2]
[420004399,1775604634869,-626.83,0.00015527,2]
[420004400,1775604634879,-330.605968,0.00015527,2]
[420004401,1775604634916,-169.394032,0.00015527,2]
[420004402,1775604634926,-467.16088541,0.00015552,2]
[420004403,1775604634939,-4880.63515803,0.00015552,2]
[420004404,1775604634948,-150.0,0.000156,2]
[420004405,1775604634957,-150.0,0.000156,2]
[420004406,1775604634967,-17.51344016,0.000156,2]
[420004407,1775604634979,-132.48655984,0.000156,2]
[420004408,1775604634989,-1100.0,0.000156,5]
[420004409,1775604634999,-5347.79604344,0.00015639,2]
[420004410,1775604635009,-1326.58562831,0.00015657,2]
[420004411,1775604635019,-200.0,0.00015657,2]
[420004412,1775604635029,-274.74896822,0.00015657,2]
[420004413,1775604635040,-910.60213533,0.00015657,2]
[420004414,1775604635050,-985.75,0.00015669,2]
[420004415,1775604635060,-150.0,0.0001568,2]
[420004416,1775604635070,-1600.0,0.00015684,2]
[420004417,1775604635080,-1300.0,0.000157,5]
[420004418,1775604635090,-5347.79604344,0.00015726,2]
[420004419,1775604635100,-588.56,0.00015729,2]
[420004420,1775604635117,-1000.0,0.0001573,2]
[420004421,1775604635127,-1000.0,0.0001573,2]
[420004422,1775604635138,-1000.0,0.0001573,2]
[420004423,1775604635149,-740.988,0.0001573,2]
[420004424,1775604635159,-150.0,0.00015733,2]
[420004425,1775604635169,-308.0,0.00015756,2]
[420004426,1775604635179,-300.0,0.00015764,2]
[420004427,1775604635190,-1500.0,0.00015778,2]
[420004428,1775604635201,-1500.0,0.00015778,2]
[420004429,1775604635211,-1500.0,0.00015778,2]
[420004430,1775604635221,-1500.0,0.00015778,2]